bitfinex/quotes_BTCUSD_20251031
["timestamp","ask_amount","ask_price","bid_price","bid_amount"]
[1761905516278,2.48685784,110010.0,110000.0,0.05954]
[1761905516491,2.35959669,110010.0,110000.0,0.05954]
[1761905517506,2.35959669,110010.0,110000.0,0.06054]
[1761905517829,2.35959669,110010.0,110000.0,0.06354]
[1761905519675,2.48685784,110010.0,110000.0,0.06354]
[1761905519918,2.49096784,110010.0,110000.0,0.03616]
[1761905520171,2.49096784,110010.0,110000.0,0.004]
[1761905520831,2.49096784,110010.0,110000.0,0.02297]
[1761905521365,2.49096784,110010.0,110000.0,0.03616]
[1761905522341,2.36370669,110010.0,110000.0,0.03616]
[1761905523659,2.49096784,110010.0,110000.0,0.03616]
[1761905523882,2.49507784,110010.0,110000.0,0.004]
[1761905524353,2.58489685,110010.0,110000.0,0.004]
[1761905524791,2.61222578,110010.0,110000.0,0.004]
[1761905525038,2.70204479,110010.0,110000.0,0.004]
[1761905532602,2.70204479,110010.0,110000.0,0.001]
[1761905532907,2.46727272,110000.0,109990.0,0.00022139]
[1761905533150,2.57816842,110000.0,109990.0,0.00022139]
[1761905533660,2.60550034,110000.0,109990.0,0.00022139]
[1761905534615,2.69531935,110000.0,109990.0,0.00022139]
[1761905544511,2.49060693,110000.0,109990.0,0.00022139]
[1761905544731,2.61787965,110000.0,109990.0,0.00022139]
[1761905545935,2.52806064,110000.0,109990.0,0.00022139]
[1761905546135,2.52732064,110000.0,109990.0,0.00022139]
[1761905546337,2.52742064,110000.0,109990.0,0.00022139]
[1761905548760,2.52658064,110000.0,109990.0,0.03006139]
[1761905548959,2.52668064,110000.0,109990.0,0.03006139]
[1761905551351,2.52668064,110000.0,109990.0,0.00022139]
[1761905552928,2.52678064,110000.0,109990.0,0.00022139]
[1761905553165,2.61659965,110000.0,109990.0,0.00022139]
[1761905553374,2.63085792,110000.0,109990.0,0.00022139]
[1761905553785,2.63082839,110000.0,109990.0,0.00022139]
[1761905554170,2.54100938,110000.0,109990.0,0.00022139]
[1761905559346,2.54090938,110000.0,109990.0,0.00022139]
[1761905559828,2.54100938,110000.0,109990.0,0.00022139]
[1761905560268,2.54090938,110000.0,109990.0,0.00022139]
[1761905560511,2.54100938,110000.0,109990.0,0.00022139]
[1761905563815,2.54100938,110000.0,109990.0,0.01588139]
[1761905563816,2.54090938,110000.0,109990.0,0.01588139]
[1761905564020,2.54090938,110000.0,109990.0,0.02874139]
[1761905564424,2.54090938,110000.0,109990.0,0.00022139]
[1761905576822,2.54090938,110000.0,109990.0,0.01588139]
[1761905577473,2.52134222,110000.0,109990.0,0.01588139]
[1761905577690,2.54093573,110000.0,109990.0,0.01588139]
[1761905578406,2.54093573,110000.0,109990.0,0.02874139]
[1761905579309,2.323744,110000.0,109990.0,0.19884915]
[1761905579515,2.323744,110000.0,109990.0,0.05338139]
[1761905580157,2.45101672,110000.0,109990.0,0.05338139]
[1761905581449,2.323744,110000.0,109990.0,0.05338139]
[1761905582419,2.0611837,110000.0,109990.0,0.18066568]
[1761905582630,2.04692543,110000.0,109990.0,0.18066568]
[1761905584307,2.04692543,110000.0,109990.0,0.05738139]
[1761905586990,2.04692543,110000.0,109990.0,0.18466568]
[1761905590508,2.04692543,110000.0,109990.0,0.05738139]
[1761905591524,2.01959351,110000.0,109990.0,0.05738139]
[1761905592028,2.01959351,110000.0,109990.0,0.21199407]
[1761905594690,2.0,110000.0,109990.0,0.21199407]
[1761905595459,2.0,110010.0,109990.0,0.21199407]
[1761905595658,2.44940412,110010.0,110000.0,0.03578]
[1761905595909,2.44940412,110010.0,110000.0,0.0508]
[1761905596113,2.44940412,110010.0,110000.0,0.07812839]
[1761905597732,2.57666527,110010.0,110000.0,0.07812839]
[1761905598289,2.57666527,110010.0,110000.0,0.07912839]
[1761905598660,2.57666527,110010.0,110000.0,0.02787]
[1761905599216,2.57666527,110010.0,110000.0,0.05389]
[1761905599845,2.44940412,110010.0,110000.0,0.05389]
[1761905600433,2.44940412,110010.0,110000.0,0.18116272]
[1761905600639,2.44940412,110010.0,110000.0,0.05389]
[1761905601053,2.44940412,110010.0,110000.0,0.08121831]
[1761905601607,2.57666527,110010.0,110000.0,0.08121831]
[1761905602038,2.44940412,110010.0,110000.0,0.08121831]
[1761905602192,2.57666527,110010.0,110000.0,0.08121831]
[1761905603097,2.6578871,110010.0,110000.0,0.08121831]
[1761905603300,2.57666527,110010.0,110000.0,0.08121831]
[1761905603835,2.44940412,110010.0,110000.0,0.20849103]
[1761905604041,2.44940412,110010.0,110000.0,0.08121831]
[1761905605160,2.57666527,110010.0,110000.0,0.08121831]
[1761905605726,2.57666527,110010.0,110000.0,0.05819831]
[1761905605915,2.57666527,110010.0,110000.0,0.08121831]
[1761905606562,2.44940412,110010.0,110000.0,0.08121831]
[1761905607603,2.44940412,110010.0,110000.0,0.20849103]
[1761905608214,2.44940412,110010.0,110000.0,0.18116272]
[1761905610190,2.44940412,110010.0,110000.0,0.05389]
[1761905610344,2.44940412,110010.0,110000.0,0.18116272]
[1761905611608,2.44940412,110010.0,110000.0,0.05389]
[1761905612533,2.25365511,110010.0,110000.0,0.05389]
[1761905612738,2.44940412,110010.0,110000.0,0.05389]
[1761905615645,2.57666527,110010.0,110000.0,0.05389]
[1761905615846,2.57666527,110010.0,110000.0,0.03087]
[1761905618039,2.57666527,110010.0,110000.0,0.004]
[1761905618922,0.12727272,110000.0,109990.0,0.00022139]
[1761905619188,2.21709173,110000.0,109990.0,0.00022139]
[1761905619404,2.23667684,110000.0,109990.0,0.00022139]
[1761905620547,2.57667684,110000.0,109990.0,0.00022139]
[1761905620735,2.66649585,110000.0,109990.0,0.00022139]
[1761905621150,2.66649585,110000.0,109990.0,0.00322139]
[1761905621545,2.66649585,110000.0,109990.0,0.00422139]
[1761905621754,2.66649585,110000.0,109990.0,0.00022139]
[1761905622293,2.57667684,110000.0,109990.0,0.00022139]
[1761905625077,2.61285912,110000.0,109990.0,0.00022139]
[1761905627760,2.40900587,110000.0,109990.0,0.00022139]
[1761905627910,2.53627859,110000.0,109990.0,0.00022139]
[1761905630900,2.53623859,110000.0,109990.0,0.00022139]
[1761905631131,2.6260576,110000.0,109990.0,0.00022139]
[1761905633737,2.62970257,110000.0,109990.0,0.00022139]
[1761905633951,2.6260576,110000.0,109990.0,0.00022139]
[1761905635250,2.64031796,110000.0,109990.0,0.00022139]
[1761905639923,2.44096905,110000.0,109990.0,0.00022139]
[1761905661748,2.69213905,110000.0,109990.0,0.00022139]
[1761905668748,2.70471905,110000.0,109990.0,0.00022139]
[1761905669164,2.61490004,110000.0,109990.0,0.00022139]
[1761905671961,2.59531493,110000.0,109990.0,0.00022139]
[1761905672364,2.61490765,110000.0,109990.0,0.00022139]
[1761905679529,2.57872537,110000.0,109990.0,0.00022139]
[1761905679731,2.57872537,110000.0,109990.0,0.02861139]
[1761905679732,2.55188501,110000.0,109990.0,0.02861139]
[1761905681777,2.55188501,110000.0,109990.0,0.05180139]
[1761905684092,2.55188501,110000.0,109990.0,0.00022139]
[1761905684737,2.79798501,110000.0,109990.0,0.00022139]
[1761905685375,2.83416729,110000.0,109990.0,0.00022139]
[1761905685821,2.86150265,110000.0,109990.0,0.00022139]
[1761905686457,2.88179588,110000.0,109990.0,0.00022139]
[1761905686639,2.97161489,110000.0,109990.0,0.00022139]
[1761905688282,2.72551489,110000.0,109990.0,0.00022139]
[1761905689040,2.54192491,110000.0,109990.0,0.00022139]
[1761905691068,2.52163168,110000.0,109990.0,0.00022139]
[1761905691837,2.53589607,110000.0,109990.0,0.00022139]
[1761905692035,2.52263168,110000.0,109990.0,0.00022139]
[1761905692640,2.53263167,110000.0,109990.0,0.00022139]
[1761905693474,2.53863167,110000.0,109990.0,0.00022139]
[1761905693799,2.54063167,110000.0,109990.0,0.00022139]
[1761905695136,2.55489703,110000.0,109990.0,0.00022139]
[1761905695795,2.54489704,110000.0,109990.0,0.00022139]
[1761905696001,2.55489703,110000.0,109990.0,0.00022139]
[1761905696212,2.56915854,110000.0,109990.0,0.00022139]
[1761905699127,2.55915855,110000.0,109990.0,0.00022139]
[1761905701664,2.55015855,110000.0,109990.0,0.00022139]
[1761905702132,2.55415855,110000.0,109990.0,0.00022139]
[1761905703412,2.55515855,110000.0,109990.0,0.00022139]
[1761905706443,2.54089704,110000.0,109990.0,0.00022139]
[1761905706659,2.11107803,110000.0,109990.0,0.00022139]
[1761905706868,2.09681267,110000.0,109990.0,0.00022139]
[1761905707080,2.43681267,110000.0,109990.0,0.00022139]
[1761905707712,2.09681267,110000.0,109990.0,0.00022139]
[1761905707910,2.02929503,110000.0,109990.0,0.01638139]
[1761905708114,2.02929503,110000.0,109990.0,0.00022139]
[1761905708251,2.36829503,110000.0,109990.0,0.00022139]
[1761905708492,2.45811404,110000.0,109990.0,0.00122139]
[1761905709695,2.47237323,110000.0,109990.0,0.00122139]
[1761905710906,2.47237323,110000.0,109990.0,0.01738139]
[1761905711477,2.38255422,110000.0,109990.0,0.01738139]
[1761905712029,2.38255422,110000.0,109990.0,0.00122139]
[1761905713279,2.4187365,110000.0,109990.0,0.00122139]
[1761905713901,2.45107435,110000.0,109990.0,0.00022139]
[1761905714522,2.44607435,110000.0,109990.0,0.00022139]
[1761905714722,2.54589336,110000.0,109990.0,0.00022139]
[1761905715268,2.53789336,110000.0,109990.0,0.00022139]
[1761905716110,2.50171108,110000.0,109990.0,0.00022139]
[1761905716650,2.54389336,110000.0,109990.0,0.00122139]
[1761905718632,2.34114685,110000.0,109990.0,0.00122139]
[1761905718838,2.25132784,110000.0,109990.0,0.00122139]
[1761905719579,2.21514556,110000.0,109990.0,0.00122139]
[1761905719947,2.2097308,110000.0,109990.0,0.00122139]
[1761905720294,2.2017308,110000.0,109990.0,0.00022139]
[1761905720495,2.29254981,110000.0,109990.0,0.00122139]
[1761905720697,2.2017308,110000.0,109990.0,0.00122139]
[1761905721094,2.16554852,110000.0,109990.0,0.01634139]
[1761905721334,2.16654852,110000.0,109990.0,0.03153139]
[1761905722403,2.16654852,110000.0,109990.0,0.05584139]
[1761905722940,2.18080726,110000.0,109990.0,0.05584139]
[1761905725960,2.18080726,110000.0,109990.0,0.03153139]
[1761905737021,2.18080726,110000.0,109990.0,0.05584139]
[1761905746557,2.18080726,110000.0,109990.0,0.18312568]
[1761905747449,2.17980726,110000.0,109990.0,0.18012568]
[1761905747867,1.62271553,110000.0,109990.0,0.18212568]
[1761905748080,1.58886407,110000.0,109990.0,0.18212568]
[1761905748928,1.58886407,110000.0,109990.0,0.18312568]
[1761905751137,1.58886407,110000.0,109990.0,0.18112568]
[1761905751365,1.58886407,110000.0,109990.0,0.19930915]
[1761905751588,1.58886407,110000.0,109990.0,0.20230915]
[1761905751799,1.58886407,110000.0,109990.0,0.18412568]
[1761905752016,1.58886407,110000.0,109990.0,0.18612568]
[1761905752869,0.25117,110000.0,109990.0,0.18612568]
[1761905757552,0.25117,110000.0,109990.0,0.21345359]
[1761905758380,0.25117,110000.0,109990.0,0.18612568]
[1761905761696,0.25117,110000.0,109990.0,0.21345359]
[1761905771514,0.25117,110000.0,109990.0,0.18612568]
[1761905794510,2.25117,110000.0,109990.0,0.18612568]
[1761905800558,2.0524883,110000.0,109990.0,0.18612568]
[1761905801755,2.05206253,110000.0,109990.0,0.18612568]
[1761905805541,2.05206253,110000.0,109990.0,0.21345197]
[1761905808747,1.84519534,110000.0,109990.0,0.21345197]
[1761905808951,0.00060364,110010.0,110000.0,0.12727272]
[1761905809166,2.00060364,110010.0,110000.0,0.17764272]
[1761905809381,2.00060364,110010.0,110000.0,0.19582453]
[1761905810214,2.00060364,110010.0,110000.0,0.19882453]
[1761905814382,2.00060364,110010.0,110000.0,0.18064272]
[1761905816123,2.00060364,110010.0,110000.0,0.19882453]
[1761905816664,2.00060364,110010.0,110000.0,0.18064272]
[1761905818698,2.02019833,110010.0,110000.0,0.18064272]
[1761905821244,2.14745948,110010.0,110000.0,0.18064272]
[1761905821455,2.14745948,110010.0,110000.0,0.05337]
[1761905823501,2.14745948,110010.0,110000.0,0.18064272]
[1761905824752,2.02019833,110010.0,110000.0,0.18064272]
[1761905827090,2.00060364,110010.0,110000.0,0.17564272]
[1761905827494,2.00060364,110010.0,110000.0,0.19382453]
[1761905829169,2.00060364,110010.0,110000.0,0.17564272]
[1761905832863,2.00060364,110010.0,110000.0,0.19382453]
[1761905833908,0.00060364,110010.0,110000.0,0.19382453]
[1761905835672,0.00060364,110010.0,110000.0,0.19082453]
[1761905835880,0.00060364,110010.0,110000.0,0.19482453]
[1761905836090,0.00060364,110010.0,110000.0,0.19682453]
[1761905841308,2.00060364,110010.0,110000.0,0.19682453]
[1761905843825,0.00060364,110010.0,110000.0,0.19682453]
[1761905845388,0.00060364,110010.0,110000.0,0.19182453]
[1761905850625,0.00060364,110010.0,110000.0,0.18682453]
[1761905864881,2.00060364,110010.0,110000.0,0.18682453]
[1761905865310,2.00060364,110010.0,110000.0,0.16864272]
[1761905867007,2.00060364,110010.0,110000.0,0.19774657]
[1761905874730,2.01246364,110010.0,110000.0,0.19774657]
[1761905874941,2.13972479,110010.0,110000.0,0.17517657]
[1761905875151,2.16705171,110010.0,110000.0,0.17517657]
[1761905875824,2.03979056,110010.0,110000.0,0.17517657]
[1761905876050,2.03979056,110010.0,110000.0,0.19787657]
[1761905876262,2.02793056,110010.0,110000.0,0.19787657]
[1761905876924,2.16705171,110010.0,110000.0,0.07060385]
[1761905877129,2.16705171,110010.0,110000.0,0.04790385]
[1761905877344,2.16705171,110010.0,110000.0,0.17517657]
[1761905878038,2.25687072,110010.0,110000.0,0.04790385]
[1761905878459,2.25687072,110010.0,110000.0,0.03510385]
[1761905879127,2.25687072,110010.0,110000.0,0.05077385]
[1761905882222,2.16705171,110010.0,110000.0,0.17804657]
[1761905882999,1.97577401,110010.0,110000.0,0.17804657]
[1761905886783,1.84851286,110010.0,110000.0,0.18940657]
[1761905886983,1.83665286,110010.0,110000.0,0.21210657]
[1761905891554,1.80932594,110010.0,110000.0,0.21210657]
[1761905903906,1.60339075,110010.0,110000.0,0.21210657]
[1761905904121,0.47225389,110020.0,110010.0,0.12726115]
[1761905904306,0.47225389,110020.0,110010.0,0.17953115]
[1761905904307,2.58165763,110020.0,110010.0,0.17953115]
[1761905905023,2.45440374,110020.0,110010.0,0.17953115]
[1761905905251,1.50207894,110020.0,110010.0,0.27035016]
[1761905905492,2.03683,110070.0,110060.0,0.12720334]
[1761905905644,2.05642339,110070.0,110060.0,0.12720334]
[1761905905849,2.05204,110070.0,110060.0,0.12720334]
[1761905906027,2.39204,110070.0,110060.0,0.12720334]
[1761905906665,2.05212771,110070.0,110060.0,0.12720334]
[1761905906867,2.4017835,110070.0,110060.0,0.12720334]
[1761905907303,2.4017835,110070.0,110060.0,0.12820334]
[1761905907659,2.0617835,110070.0,110060.0,0.12920334]
[1761905907860,2.4017835,110070.0,110060.0,0.12920334]
[1761905910435,2.61879429,110070.0,110060.0,0.002]
[1761905910978,2.70994049,110070.0,110060.0,0.002]
[1761905911382,2.62012148,110070.0,110060.0,0.002]
[1761905911559,2.62012148,110070.0,110060.0,0.001]
[1761905912677,2.0,110060.0,110050.0,0.12721467]
[1761905912851,2.14185901,110060.0,110050.0,0.12721467]
[1761905913055,2.1429651,110060.0,110050.0,0.12721467]
[1761905913902,2.27016844,110060.0,110050.0,0.12721467]
[1761905914106,2.27016844,110060.0,110040.0,0.13631406]
[1761905914349,2.0,110040.0,110030.0,0.12722846]
[1761905914557,2.02717,110040.0,110030.0,0.12722846]
[1761905914761,2.05204,110040.0,110030.0,0.12722846]
[1761905915549,2.05204,110040.0,110030.0,0.12922846]
[1761905915704,2.05204,110040.0,110030.0,0.12722846]
[1761905916114,2.17926646,110040.0,110030.0,0.12822846]
[1761905916530,2.17926646,110040.0,110030.0,0.12823802]
[1761905917146,2.17926646,110040.0,110030.0,0.12923802]
[1761905917352,2.05204,110040.0,110030.0,0.12923802]
[1761905920826,2.60908547,110040.0,110030.0,0.002]
[1761905921253,2.60974925,110040.0,110030.0,0.002]
[1761905922328,2.60974925,110040.0,110020.0,0.12724858]
[1761905922576,2.05204,110030.0,110020.0,0.12724858]
[1761905924207,2.05204,110030.0,110020.0,0.12824858]
[1761905925331,2.05204,110030.0,110020.0,0.12924858]
[1761905925749,2.17927802,110030.0,110020.0,0.002]
[1761905927738,2.17972058,110030.0,110020.0,0.002]
[1761905928036,1.99110426,110030.0,110020.0,0.002]
[1761905928215,2.01826426,110030.0,110020.0,0.12924959]
[1761905929170,1.86615624,110030.0,110020.0,0.14458959]
[1761905929388,1.89009624,110030.0,110020.0,0.12924959]
[1761905931272,2.40973426,110030.0,110020.0,0.002]
[1761905931449,2.59528086,110030.0,110020.0,0.002]
[1761905931676,2.61478095,110030.0,110020.0,0.002]
[1761905932096,2.46581483,110010.0,110000.0,0.02970752]
[1761905932311,2.08279384,110010.0,110000.0,0.0298518]
[1761905932515,2.10673384,110010.0,110000.0,0.0298518]
[1761905933939,2.10673384,110010.0,110000.0,0.0308518]
[1761905934326,2.19655285,110010.0,110000.0,0.0308518]
[1761905934538,2.10673384,110010.0,110000.0,0.0308518]
[1761905934865,2.10673384,110010.0,110000.0,0.0318518]
[1761905935424,2.10673384,110010.0,110000.0,0.0308518]
[1761905935828,2.10873384,110010.0,110000.0,0.0308518]
[1761905936055,2.19855285,110010.0,110000.0,0.0298518]
[1761905939601,2.19855285,110010.0,110000.0,1e-08]
[1761905939602,2.59420135,110010.0,110000.0,1e-08]
[1761905939829,2.61632765,110010.0,110000.0,1e-08]
[1761905940029,2.61997254,110010.0,110000.0,1e-08]
[1761905940674,2.61797254,110010.0,110000.0,1e-08]
[1761905941042,2.62297254,110010.0,110000.0,1e-08]
[1761905941447,2.61897254,110010.0,110000.0,1e-08]
[1761905941857,2.63097254,110010.0,110000.0,0.00100001]
[1761905942146,2.62997254,110010.0,110000.0,0.00100001]
[1761905942556,0.46728429,109990.0,109980.0,0.0004]
[1761905942722,2.48589186,109990.0,109980.0,0.00088255]
[1761905942927,2.50983186,109990.0,109980.0,0.00132536]
[1761905943554,2.5292776,109990.0,109980.0,0.00132536]
[1761905943762,2.5332776,109990.0,109980.0,0.00132536]
[1761905943982,2.5352776,109990.0,109980.0,0.00132536]
[1761905944198,2.53527331,109990.0,109980.0,0.00132536]
[1761905944865,2.78137331,109990.0,109980.0,0.00132536]
[1761905945326,2.76193186,109990.0,109980.0,0.00132536]
[1761905953297,2.77619313,109990.0,109980.0,0.00132536]
[1761905954253,2.79562968,109990.0,109980.0,0.00132536]
[1761905956997,2.77619313,109990.0,109980.0,0.00132536]
[1761905957200,2.71311825,109990.0,109980.0,0.00132536]
[1761905958248,2.70711825,109990.0,109980.0,0.00132536]
[1761905958449,2.72858208,109990.0,109980.0,0.00132536]
[1761905958674,2.72958208,109990.0,109980.0,0.00132536]
[1761905958845,2.81940109,109990.0,109980.0,0.00132536]
[1761905960870,2.55903982,109990.0,109980.0,0.00132536]
[1761905969863,2.56268538,109990.0,109980.0,0.00132536]
[1761905970339,0.1520206,109950.0,109940.0,0.00501369]
[1761905970530,2.04204921,109950.0,109940.0,8.747e-05]
[1761905970747,2.04204921,109950.0,109940.0,0.12742965]
[1761905971637,2.02437433,109950.0,109940.0,0.13542965]
[1761905971828,2.02437433,109950.0,109940.0,0.01008747]
[1761905973139,2.02437433,109950.0,109940.0,0.13742965]
[1761905973590,2.00083433,109950.0,109940.0,0.16244965]
[1761905975952,2.00083433,109950.0,109940.0,0.16333568]
[1761905977609,2.02437433,109950.0,109940.0,0.0359935]
[1761905977815,2.02437433,109950.0,109940.0,0.16333568]
[1761905978019,2.11419334,109950.0,109940.0,0.16333568]
[1761905978219,2.11419334,109950.0,109940.0,0.14798568]
[1761905979323,2.11419334,109950.0,109940.0,0.16333568]
[1761905979649,2.02437433,109950.0,109940.0,0.16333568]
[1761905979870,2.00083433,109950.0,109940.0,0.16333568]
[1761905980079,1.98497433,109950.0,109940.0,0.16333568]
[1761905980290,1.84881373,109950.0,109940.0,0.19886742]
[1761905980958,1.84881373,109950.0,109940.0,0.18067568]
[1761905983728,0.01026005,109950.0,109940.0,0.19886742]
[1761905983936,0.001,109950.0,109940.0,0.19886742]
[1761905984550,0.001,109950.0,109940.0,0.22620572]
[1761905984745,0.001,109950.0,109940.0,0.29783299]
[1761905986964,0.001,109950.0,109940.0,0.29583299]
[1761905987197,0.00940434,109970.0,109960.0,0.12731902]
[1761905987415,0.00940434,109970.0,109960.0,0.16931745]
[1761905987617,2.5861,109980.0,109970.0,0.12730744]
[1761905987892,2.5861,109980.0,109970.0,0.16078744]
[1761905989473,2.5861,109980.0,109970.0,0.16278744]
[1761905989952,2.5861,109980.0,109970.0,0.16378744]
[1761905990159,2.59533632,109980.0,109970.0,0.16378744]
[1761905990294,2.25533632,109980.0,109970.0,0.18197421]
[1761905990954,2.25533632,109980.0,109970.0,0.16378744]
[1761905991188,2.00923632,109980.0,109970.0,0.16378744]
[1761905993319,2.00923632,109980.0,109970.0,0.16400889]
[1761905997549,2.02441632,109980.0,109970.0,0.14666889]
[1761905998630,2.00923632,109980.0,109970.0,0.14666889]
[1761905998839,2.00923632,109980.0,109970.0,0.16400889]
[1761906000011,0.00923632,109980.0,109970.0,0.20952716]
[1761906000209,0.50060377,109990.0,109980.0,0.12729587]
[1761906000518,2.00060377,109990.0,109980.0,0.18863099]
[1761906001461,2.00108594,109990.0,109980.0,0.18863099]
[1761906001851,2.01048965,109990.0,109980.0,0.17044587]
[1761906002399,2.01048965,109990.0,109980.0,0.1977756]
[1761906002809,0.01048965,109990.0,109980.0,0.1977756]
[1761906002980,0.00108594,109990.0,109980.0,0.1997756]
[1761906003193,0.00108594,109990.0,109980.0,0.2017756]
[1761906003387,0.00108594,109990.0,109980.0,0.28959461]
[1761906004736,0.00108594,109990.0,109980.0,0.29659461]
[1761906007067,0.00108594,109990.0,109980.0,0.69008431]
[1761906013274,0.00108594,109990.0,109980.0,0.29659461]
[1761906013689,2.89457564,109990.0,109980.0,0.1894356]
[1761906013888,2.42110564,109990.0,109980.0,0.16210587]
[1761906014453,2.42110564,109990.0,109980.0,0.16010587]
[1761906014658,2.42110564,109990.0,109980.0,0.15310587]
[1761906014828,2.42110564,109990.0,109980.0,0.16010587]
[1761906017396,2.42110564,109990.0,109980.0,0.15510587]
[1761906017603,2.42110564,109990.0,109980.0,0.15310587]
[1761906017800,2.42110564,109990.0,109980.0,0.15610587]
[1761906018185,2.42110564,109990.0,109980.0,0.15410587]
[1761906018586,2.42110564,109990.0,109980.0,0.15610587]
[1761906021128,2.44523564,109990.0,109980.0,0.13996587]
[1761906021480,2.44523564,109990.0,109980.0,0.15543587]
[1761906021677,2.42110564,109990.0,109980.0,0.15543587]
[1761906022753,2.54838993,109990.0,109980.0,0.15543587]
[1761906023642,2.57251993,109990.0,109980.0,0.13996587]
[1761906023869,2.44523564,109990.0,109980.0,0.13996587]
[1761906024292,2.44523564,109990.0,109980.0,0.15543587]
[1761906024904,2.42110564,109990.0,109980.0,0.15543587]
[1761906025104,2.00108594,109990.0,109980.0,0.17277587]
[1761906032707,0.00108594,109990.0,109980.0,0.19096099]
[1761906038914,0.00108594,109990.0,109980.0,0.58445069]
[1761906039185,0.00108594,109990.0,109980.0,0.17277587]
[1761906039383,0.00108594,109990.0,109980.0,0.18758003]
[1761906039655,0.00108594,109990.0,109980.0,0.27739904]
[1761906039830,0.00108594,109990.0,109980.0,0.26259488]
[1761906039997,0.00108594,109990.0,109980.0,0.28992117]
[1761906040447,0.00108594,109990.0,109980.0,0.68341087]
[1761906041331,0.00108594,109990.0,109980.0,0.28992117]
[1761906042016,0.00108594,109990.0,109980.0,0.68341087]
[1761906043201,1e-08,109990.0,109980.0,1.12008284]
[1761906043450,1e-08,109990.0,109980.0,1.12208284]
[1761906043590,1e-08,109990.0,109980.0,1.12708284]
[1761906043957,1e-08,109990.0,109980.0,0.73359314]
[1761906044167,1e-08,109990.0,109980.0,0.72859314]
[1761906044393,1e-08,109990.0,109980.0,0.72659314]
[1761906044601,1e-08,109990.0,109980.0,0.72859314]
[1761906045020,1e-08,109990.0,109980.0,1.12208284]
[1761906045357,1e-08,109990.0,109980.0,1.12808284]
[1761906045556,1e-08,109990.0,109980.0,1.46808284]
[1761906045780,1e-08,109990.0,109980.0,1.06859314]
[1761906046182,0.00100001,109990.0,109980.0,1.07459314]
[1761906046695,0.00100001,109990.0,109980.0,1.07759314]
[1761906048096,0.00100001,109990.0,109980.0,1.47108284]
[1761906048296,2.7334897,110030.0,110020.0,0.12724959]
[1761906048503,2.73353792,110030.0,110020.0,0.12724959]
[1761906048695,2.73353792,110030.0,110020.0,0.16074959]
[1761906049138,2.74295327,110030.0,110020.0,0.16074959]
[1761906049485,2.74395327,110030.0,110020.0,0.16074959]
[1761906050489,2.35046357,110030.0,110020.0,0.16074959]
[1761906050691,2.74395327,110030.0,110020.0,0.16074959]
[1761906051120,2.76029327,110030.0,110020.0,0.14340959]
[1761906051329,2.88753129,110030.0,110020.0,0.14340959]
[1761906052401,2.76029327,110030.0,110020.0,0.14340959]
[1761906052625,2.35046357,110030.0,110020.0,0.16074959]
[1761906053841,2.47858679,110030.0,110020.0,0.16174959]
[1761906054161,2.92519649,110030.0,110020.0,0.12824959]
[1761906054392,2.92419649,110030.0,110020.0,0.12824959]
[1761906054688,2.92419649,110030.0,110020.0,0.13024959]
[1761906056435,2.58419649,110030.0,110020.0,0.13024959]
[1761906057784,2.43212847,110030.0,110020.0,0.14640959]
[1761906058390,2.45695847,110030.0,110020.0,0.14640959]
[1761906060932,2.92419649,110030.0,110020.0,0.13024959]
[1761906061760,2.79695847,110030.0,110020.0,0.13024959]
[1761906062176,2.79695847,110030.0,110020.0,0.14640959]
[1761906062394,2.77212847,110030.0,110020.0,0.14640959]
[1761906062751,2.37863877,110030.0,110020.0,0.14640959]
[1761906062952,2.77212847,110030.0,110020.0,0.14640959]
[1761906063576,2.79695847,110030.0,110020.0,0.14640959]
[1761906065132,2.77212847,110030.0,110020.0,0.14640959]
[1761906067353,2.77204674,110030.0,110020.0,0.14640959]
[1761906069636,2.74375674,110030.0,110020.0,0.14640959]
[1761906069836,2.74375674,110030.0,110020.0,0.16374959]
[1761906070274,2.35034877,110030.0,110020.0,0.1819281]
[1761906070477,2.74375674,110030.0,110020.0,0.16374959]
[1761906071038,2.35034877,110030.0,110020.0,0.16374959]
[1761906073074,0.52620741,110080.0,110040.0,0.12722646]
[1761906073282,2.0,110070.0,110060.0,0.12720133]
[1761906073450,2.73340797,110070.0,110060.0,0.13587133]
[1761906073650,2.74974797,110070.0,110060.0,0.15203133]
[1761906074559,2.73340797,110070.0,110060.0,0.15203133]
[1761906074984,2.35056694,110070.0,110060.0,0.16937133]
[1761906075191,2.35056694,110070.0,110060.0,0.18754323]
[1761906075400,2.35256694,110070.0,110060.0,0.16937133]
[1761906075612,0.35256694,110070.0,110060.0,0.16937133]
[1761906075796,0.35256694,110070.0,110060.0,0.18754323]
[1761906076055,0.35256694,110070.0,110060.0,0.16937133]
[1761906076262,0.35656694,110070.0,110060.0,0.16937133]
[1761906076680,0.35056694,110070.0,110060.0,0.17037133]
[1761906076864,0.35056694,110070.0,110060.0,0.17237133]
[1761906077097,0.35056694,110070.0,110060.0,0.5657793]
[1761906077284,0.01056694,110070.0,110060.0,0.65559831]
[1761906077537,0.00014467,110080.0,110070.0,0.12719178]
[1761906077744,0.00014467,110080.0,110070.0,0.66148901]
[1761906077954,0.00014467,110080.0,110070.0,0.24991079]
[1761906078168,0.01078386,110080.0,110070.0,0.24991079]
[1761906078382,0.00014467,110080.0,110070.0,0.24991079]
[1761906079203,0.00125045,110080.0,110070.0,0.24991079]
[1761906079404,0.00125045,110080.0,110070.0,0.64431876]
[1761906080019,0.00125045,110080.0,110070.0,0.24991079]
[1761906080225,0.00125045,110080.0,110070.0,0.64431876]
[1761906080435,0.00125045,110080.0,110070.0,0.64731876]
[1761906082645,0.00125045,110080.0,110070.0,1.04072673]
[1761906083137,0.00125045,110080.0,110070.0,0.67462004]
[1761906083344,0.00125045,110080.0,110070.0,0.71080232]
[1761906085547,0.01149,110100.0,110080.0,0.13626453]
[1761906085772,2.0,110090.0,110080.0,0.27848214]
[1761906085974,2.0,110090.0,110080.0,0.23764354]
[1761906086189,2.0,110090.0,110080.0,0.25320354]
[1761906086618,0.39340797,110090.0,110080.0,0.27587354]
[1761906086843,0.40470971,110100.0,110080.0,0.27587354]
[1761906086844,0.01230174,110100.0,110090.0,0.12716868]
[1761906087059,2.79911768,110100.0,110090.0,0.17352868]
[1761906088178,2.01130174,110100.0,110090.0,0.17352868]
[1761906088450,2.40470971,110100.0,110090.0,0.17352868]
[1761906088910,2.79811768,110100.0,110090.0,0.17352868]
[1761906089292,2.79911768,110100.0,110090.0,0.17352868]
[1761906090161,2.79811768,110100.0,110090.0,0.17352868]
[1761906090577,2.01130174,110100.0,110090.0,0.17352868]
[1761906090804,2.40470971,110100.0,110090.0,0.17352868]
[1761906091601,2.40470971,110100.0,110090.0,0.17452868]
[1761906091802,2.01130174,110100.0,110090.0,0.17452868]
[1761906092164,2.40515185,110100.0,110090.0,0.17452868]
[1761906093641,2.01174388,110100.0,110090.0,0.26434769]
[1761906093890,2.40515185,110100.0,110090.0,0.26434769]
[1761906094103,2.79855982,110100.0,110090.0,0.17452868]
[1761906095457,2.40515185,110100.0,110090.0,0.17452868]
[1761906099650,2.4030443,110100.0,110090.0,0.17452868]
[1761906100436,3.16339227,110100.0,110090.0,0.15185868]